bitfinex/quotes_ETHUSD_20251218
["timestamp","ask_amount","ask_price","bid_price","bid_amount"]
[1766024450283,2.2198,2844.9,2843.7,0.75995854]
[1766024450484,0.763,2844.6,2843.7,0.75995854]
[1766024450693,2.2198,2844.9,2843.7,0.75995854]
[1766024450921,0.22198,2844.8,2843.6,0.002]
[1766024451068,0.405504,2844.8,2843.6,0.002]
[1766024451270,0.405504,2844.7,2843.6,0.002]
[1766024451465,2.68418023,2844.5,2843.6,0.002]
[1766024451659,0.763,2844.2,2843.6,0.002]
[1766024451886,2.9828,2844.2,2843.6,0.002]
[1766024452263,0.34471802,2844.2,2843.1,0.002]
[1766024452498,0.46438023,2843.9,2843.1,0.002]
[1766024452794,2.68418023,2843.8,2843.1,0.002]
[1766024453092,0.763,2843.5,2843.1,0.002]
[1766024453264,2.68418023,2843.7,2843.1,0.002]
[1766024454182,2.2198,2843.7,2843.1,0.002]
[1766024454492,0.763,2843.5,2843.1,0.002]
[1766024454697,2.9828,2843.3,2843.1,0.002]
[1766024455193,0.86988423,2844.2,2843.1,0.002]
[1766024455194,0.405504,2844.2,2843.1,0.002]
[1766024455488,2.9828,2844.3,2843.1,0.002]
[1766024455796,0.46438023,2844.2,2843.2,0.03530325]
[1766024456096,10.24255287,2845.8,2843.6,0.03530325]
[1766024456295,0.7681,2845.3,2843.4,0.03530325]
[1766024456494,2.65368023,2845.2,2843.4,0.03530325]
[1766024456792,0.7338,2845.0,2843.3,0.564]
[1766024456990,0.46438023,2845.2,2843.1,0.002]
[1766024456991,0.7338,2844.4,2843.1,0.002]
[1766024457194,2.9231,2843.9,2843.1,0.002]
[1766024457568,2.65368023,2844.1,2843.1,0.002]
[1766024457767,2.1893,2843.7,2843.1,0.002]
[1766024458699,2.65368023,2844.1,2843.1,0.002]
[1766024458990,2.9231,2843.7,2843.1,0.002]
[1766024459189,2.9231,2844.1,2843.1,0.002]
[1766024459364,2.9231,2843.7,2843.1,0.002]
[1766024460405,2.1893,2843.7,2843.1,0.002]
[1766024460611,2.48161,2844.3,2843.1,0.002]
[1766024460767,2.9231,2844.3,2843.2,0.59930325]
[1766024461295,0.86988423,2844.7,2843.2,0.03530325]
[1766024461518,2.1893,2843.8,2843.1,0.002]
[1766024461796,0.405504,2844.0,2843.1,0.002]
[1766024461998,0.405504,2844.1,2843.1,0.002]
[1766024462169,1.60368423,2844.2,2843.1,0.002]
[1766024462369,2.9231,2843.8,2843.1,0.002]
[1766024463392,0.405504,2844.0,2843.1,0.002]
[1766024463568,2.1893,2843.8,2843.1,0.002]
[1766024465427,0.405504,2844.2,2843.1,0.002]
[1766024465428,2.9231,2843.3,2843.1,0.002]
[1766024465582,2.1893,2843.2,2842.8,0.002]
[1766024465778,2.9231,2843.0,2842.8,0.002]
[1766024465984,2.1893,2843.2,2842.8,0.002]
[1766024466179,2.9231,2843.2,2842.8,0.002]
[1766024466817,2.9231,2843.2,2842.3,0.6]
[1766024466818,0.321541,2843.2,2842.3,0.6]
[1766024467116,2.1893,2842.5,2842.3,0.6]
[1766024467284,2.9231,2842.5,2842.3,0.6]
[1766024467622,0.405504,2842.8,2842.0,0.6]
[1766024467787,0.46438023,2842.9,2841.7,0.002]
[1766024467788,0.405504,2842.6,2841.7,0.002]
[1766024467983,2.1893,2842.3,2841.7,0.002]
[1766024468217,2.40823,2842.3,2841.7,0.002]
[1766024468422,0.7338,2842.1,2841.7,0.002]
[1766024468635,0.405504,2842.6,2841.4,0.002]
[1766024468636,2.9231,2841.7,2841.4,0.002]
[1766024468920,2.1893,2841.6,2841.4,0.002]
[1766024469232,0.46438023,2842.5,2840.8,0.03730325]
[1766024469233,0.405504,2842.6,2840.9,0.46438023]
[1766024469382,0.7338,2842.0,2840.8,0.002]
[1766024469742,0.7338,2841.5,2840.8,0.002]
[1766024469883,2.1893,2841.3,2840.8,0.002]
[1766024470328,0.46438023,2841.8,2840.8,0.002]
[1766024470513,8.41861578,2842.3,2840.8,0.002]
[1766024470514,2.1893,2841.6,2840.8,0.002]
[1766024470714,0.46438023,2842.2,2840.8,0.002]
[1766024471020,3.081,2842.0,2840.9,0.03530325]
[1766024471230,3.081,2842.0,2840.8,0.002]
[1766024471231,0.405504,2842.5,2840.8,0.002]
[1766024471436,2.2989,2842.0,2840.8,0.002]
[1766024471600,2.2989,2841.1,2840.8,0.002]
[1766024471784,2.2989,2841.4,2840.2,0.46438023]
[1766024471988,3.081,2841.1,2840.0,0.03530325]
[1766024472220,3.081,2841.1,2840.2,3.98520696]
[1766024472404,0.7821,2841.1,2840.2,3.52082673]
[1766024472719,3.081,2841.0,2840.3,3.87280298]
[1766024473020,2.2989,2840.9,2840.3,0.35208267]
[1766024473215,3.081,2840.9,2840.1,3.52095534]
[1766024473519,3.081,2840.9,2840.0,3.52108793]
[1766024473720,0.405504,2841.6,2840.2,3.52084888]
[1766024474017,2.2989,2841.6,2840.3,0.53489102]
[1766024474210,2.76328023,2841.6,2840.3,0.53489102]
[1766024474408,3.081,2841.3,2840.4,1.10974975]
[1766024475605,2.2989,2841.3,2840.5,3.52050695]
[1766024475848,2.9517,2841.6,2840.6,0.03520383]
[1766024476228,2.1922,2841.5,2840.5,3.5558102]
[1766024476411,2.9517,2841.5,2840.5,3.5558102]
[1766024476727,2.9517,2841.5,2840.6,0.70763462]
[1766024476888,2.1922,2841.5,2840.6,0.70763462]
[1766024477090,2.9517,2841.5,2840.6,0.70763462]
[1766024477293,2.1922,2841.4,2840.6,0.70763462]
[1766024477627,0.7595,2841.4,2840.6,0.70763462]
[1766024477801,2.1922,2841.1,2840.3,1.02838023]
[1766024478002,0.7595,2841.6,2840.6,3.52035648]
[1766024478202,2.1922,2841.5,2840.6,3.52035648]
[1766024478606,2.9517,2841.5,2840.4,3.52062302]
[1766024478799,2.9517,2841.4,2840.5,3.5204756]
[1766024479000,2.9517,2841.3,2840.4,3.52060594]
[1766024479220,2.9517,2841.3,2840.5,3.52050406]
[1766024479400,2.9517,2841.3,2840.6,3.52029053]
[1766024479591,0.58931917,2842.0,2840.4,3.52052137]
[1766024479792,0.405504,2841.6,2840.2,3.52077265]
[1766024479993,0.46438023,2841.6,2840.3,7.50584868]
[1766024480318,2.9517,2841.4,2840.3,7.50584868]
[1766024480521,2.1922,2841.1,2840.3,0.46438023]
[1766024480830,2.1922,2840.9,2840.2,0.82018782]
[1766024481022,2.9517,2840.8,2840.2,0.35580759]
[1766024481224,0.7595,2840.8,2840.0,0.002]
[1766024481537,2.1922,2840.7,2840.0,3.52311984]
[1766024481745,2.1922,2841.0,2840.0,0.002]
[1766024481914,2.9517,2840.9,2840.0,0.002]
[1766024482110,2.1922,2840.8,2840.0,0.002]
[1766024482312,2.1922,2840.8,2840.0,0.76285015]
[1766024482633,2.1922,2841.4,2840.4,0.002]
[1766024482839,0.405504,2841.5,2840.4,0.002]
[1766024483001,2.9517,2841.1,2840.4,0.002]
[1766024483898,0.7595,2841.0,2840.0,0.002]
[1766024484101,2.9517,2840.7,2840.0,3.52311094]
[1766024484332,2.9517,2840.7,2840.0,0.002]
[1766024484833,2.9517,2840.7,2840.0,3.52306238]
[1766024485040,3.7,2841.6,2840.0,3.52306238]
[1766024485041,0.7595,2841.5,2840.2,0.03530325]
[1766024485209,1.22388023,2841.5,2840.3,0.563]
[1766024485412,2.65658023,2841.3,2840.3,0.563]
[1766024485604,3.41608023,2841.3,2840.3,0.563]
[1766024485930,2.9517,2841.2,2840.3,4.08475484]
[1766024486132,2.1922,2841.1,2840.3,4.08475484]
[1766024486308,2.1922,2841.1,2840.3,3.52075484]
[1766024486511,2.1922,2841.1,2840.4,0.35207548]
[1766024486713,2.9517,2841.1,2840.4,0.35207548]
[1766024487100,2.65658023,2841.4,2840.4,0.35207548]
[1766024487317,3.41608023,2841.3,2840.4,0.35207548]
[1766024487542,2.1922,2841.3,2840.5,0.03530325]
[1766024487710,2.1922,2841.7,2840.5,0.03530325]
[1766024487912,2.65658023,2841.5,2840.5,3.52045093]
[1766024488103,2.9517,2841.2,2840.4,0.35207548]
[1766024488304,0.21922,2841.7,2840.4,0.35207548]
[1766024488305,0.21922,2841.7,2840.5,3.52050695]
[1766024488498,2.1922,2841.4,2840.5,7.0410139]
[1766024489037,0.7595,2841.5,2840.5,7.0410139]
[1766024490101,0.7595,2841.5,2840.6,0.46438023]
[1766024490307,0.7595,2841.5,2840.6,0.49968348]
[1766024490873,2.9517,2841.5,2840.6,0.46438023]
[1766024491035,2.9517,2841.5,2840.7,0.75053941]
[1766024491606,2.9517,2841.4,2840.5,3.52050695]
[1766024492751,2.9517,2841.4,2840.5,7.0410139]
[1766024493053,0.7595,2841.4,2840.5,3.52050695]
[1766024493204,2.1922,2841.3,2840.5,3.52050695]
[1766024493715,3.24687,2841.3,2840.4,4.08558193]
[1766024493909,2.1922,2841.2,2840.4,4.08558193]
[1766024494111,2.1922,2841.7,2840.4,4.08558193]
[1766024494417,2.1922,2841.1,2840.4,3.52258193]
[1766024494952,0.7595,2840.8,2840.4,0.002]
[1766024495250,2.9517,2840.6,2840.0,0.002]
[1766024495457,2.1922,2840.3,2840.0,0.002]
[1766024495606,2.1922,2840.3,2839.2,0.03730325]
[1766024495607,2.1922,2840.2,2839.2,0.03730325]
[1766024495803,2.9517,2840.1,2839.2,0.03730325]
[1766024496011,2.9517,2840.1,2839.3,3.52195184]
[1766024496226,2.9517,2840.1,2839.2,3.5241189]
[1766024496440,2.9517,2840.1,2839.2,7.0462378]
[1766024496847,2.1922,2840.1,2839.2,3.5241189]
[1766024497030,2.9517,2840.0,2839.2,4.2850574]
[1766024497209,2.9517,2840.0,2839.2,0.7629385]
[1766024497410,0.7595,2839.8,2839.2,0.002]
[1766024497647,2.9517,2839.5,2839.2,0.002]
[1766024497810,0.7595,2839.5,2839.2,0.002]
[1766024498011,0.7595,2839.5,2838.6,3.52285354]
[1766024498012,0.86988423,2839.8,2837.8,3.56106744]
[1766024498212,0.405504,2840.0,2838.2,0.03530325]
[1766024498437,0.405504,2840.0,2838.4,0.03530325]
[1766024498438,2.9517,2839.6,2838.4,0.03530325]
[1766024498741,2.9517,2839.6,2838.1,10.57245206]
[1766024498742,2.9517,2839.4,2838.3,0.03530325]
[1766024499330,2.1922,2839.4,2838.3,0.6335356]
[1766024499651,2.1922,2839.6,2838.5,0.03530325]
[1766024500153,0.46438023,2839.8,2838.3,0.59830325]
[1766024500326,2.1922,2839.4,2838.4,7.04622322]
[1766024500523,0.7595,2839.5,2838.5,0.59930325]
[1766024500746,2.65658023,2839.7,2838.5,0.59930325]
[1766024500923,2.9385,2839.7,2838.5,0.564]
[1766024501124,2.1922,2839.7,2838.6,0.76102232]
[1766024501319,3.1541,2839.7,2838.6,0.76102232]
[1766024501541,2.4078,2839.4,2838.6,0.76102232]
[1766024501749,0.405504,2839.6,2838.6,0.76102232]
[1766024501961,2.4078,2839.4,2838.5,0.03522987]
[1766024502258,0.7463,2839.6,2838.4,7.04622322]
[1766024502462,2.4078,2839.7,2838.5,0.4996101]
[1766024502628,0.7463,2839.9,2838.6,0.565]
[1766024502950,0.46438023,2839.8,2838.9,0.03530325]
[1766024503152,3.1541,2841.0,2839.1,0.03530325]
[1766024503351,0.45061905,2841.1,2838.9,0.03530325]
[1766024503352,0.46438023,2840.2,2838.9,0.03530325]
[1766024503654,0.86988423,2840.7,2838.9,0.03530325]
[1766024503856,0.405504,2840.4,2838.7,0.03530325]
[1766024504021,0.7463,2839.9,2838.7,0.03530325]
[1766024504226,0.86988423,2840.5,2838.7,0.03530325]
[1766024504227,3.1541,2839.7,2838.7,0.03530325]
[1766024504554,0.46438023,2840.4,2838.7,3.52270569]
[1766024504722,3.1541,2840.3,2838.8,0.35227057]
[1766024504926,0.7463,2839.7,2838.8,0.35227057]
[1766024505226,2.4078,2839.4,2838.8,0.35227057]
[1766024505741,3.1541,2839.4,2838.6,0.565]
[1766024505966,3.1541,2839.1,2838.4,0.002]
[1766024506168,0.405504,2839.4,2838.4,0.002]
[1766024506368,0.7463,2838.9,2838.4,0.002]
[1766024506671,2.72321,2838.9,2838.4,0.002]
[1766024506874,0.31541,2838.9,2838.4,0.002]
[1766024507073,2.4078,2839.1,2838.4,0.002]
[1766024507277,0.7463,2839.1,2838.4,0.002]
[1766024507580,2.4078,2838.8,2838.4,0.002]
[1766024507782,3.1541,2839.2,2838.4,0.002]
[1766024508160,0.405504,2839.3,2838.4,0.002]
[1766024508552,3.1541,2838.9,2838.4,0.002]
[1766024509487,3.46951,2838.9,2838.4,0.002]
[1766024510184,0.31541,2838.9,2838.1,0.002]
[1766024510487,0.405504,2839.2,2837.8,0.002]
[1766024510488,0.405504,2839.0,2837.8,0.002]
[1766024510986,2.4078,2838.7,2837.8,0.002]
[1766024511356,2.4078,2838.7,2837.8,3.52578479]
[1766024511555,2.4078,2839.0,2837.9,7.0474365]
[1766024511775,2.4078,2839.0,2838.0,0.7402469]
[1766024511970,0.7463,2838.9,2838.0,0.70494365]
[1766024512295,2.4078,2838.8,2838.0,0.70494365]
[1766024512891,3.1541,2838.8,2838.0,0.70494365]
[1766024513799,2.4078,2838.7,2838.4,0.002]
[1766024514001,3.1541,2838.6,2838.4,0.002]
[1766024514206,2.4078,2838.6,2838.4,0.002]
[1766024514411,0.7463,2838.9,2838.4,0.002]
[1766024514618,2.87218023,2839.3,2838.4,0.002]
[1766024514899,2.4078,2839.3,2838.4,0.002]
[1766024515306,0.7463,2839.4,2838.4,0.002]
[1766024515610,3.1541,2839.3,2838.4,0.002]
[1766024516582,0.7463,2839.1,2838.4,0.002]
[1766024517217,3.1541,2839.1,2838.4,0.002]
[1766024517703,3.1541,2839.1,2838.4,3.52511161]
[1766024518980,3.1541,2839.1,2838.4,0.002]
[1766024519180,3.1541,2839.1,2838.4,0.75329132]
[1766024520094,3.1541,2839.1,2838.4,4.27636731]
[1766024521631,2.4078,2839.1,2838.4,7.79947892]
[1766024521831,0.7463,2839.4,2838.4,7.79947892]
[1766024522032,2.4078,2839.5,2838.4,7.79947892]
[1766024522336,0.46438023,2839.6,2838.5,1.37925114]
[1766024522538,1.21068023,2839.7,2838.5,1.37925114]
[1766024522743,0.46438023,2840.2,2838.4,0.002]
[1766024522906,0.405504,2839.6,2838.4,0.002]
[1766024523108,0.7463,2838.8,2837.8,4.08977716]
[1766024523439,3.1541,2838.7,2837.9,3.52373097]
[1766024524003,3.1541,2838.7,2837.9,0.46438023]
[1766024524208,0.405504,2839.4,2837.9,0.91979924]
[1766024524409,2.4078,2839.4,2838.5,0.03530325]
[1766024524616,2.87218023,2839.6,2838.5,0.03530325]
[1766024526234,2.87218023,2839.6,2838.6,3.52286338]
[1766024527646,3.52093686,2840.2,2838.7,0.03530325]
[1766024527647,0.7463,2840.2,2838.7,0.03530325]
[1766024527834,3.1541,2839.7,2838.8,0.708103]
[1766024528755,2.4078,2839.4,2838.4,3.52305622]
[1766024529051,3.1541,2839.3,2838.4,3.9874208]
[1766024529252,3.1541,2839.3,2838.4,1.02838023]
[1766024529421,3.1541,2839.3,2838.5,0.45515931]
[1766024529754,2.4078,2839.2,2838.5,0.45515931]
[1766024529922,2.4078,2839.2,2838.2,0.46438023]
[1766024530124,0.7463,2839.3,2838.6,3.52277657]
[1766024530319,0.7463,2839.3,2838.4,7.04612578]
[1766024531567,0.7463,2839.3,2838.4,3.52301417]
[1766024531859,2.2365,2839.2,2838.4,7.04612578]
[1766024532064,2.2365,2839.5,2838.5,0.79984615]
[1766024532232,0.001,2839.6,2838.5,0.79984615]
[1766024532440,0.001,2839.6,2838.6,3.52286338]
[1766024532839,0.001,2839.6,2838.6,7.04572676]
[1766024533046,0.001,2839.6,2838.7,0.03530325]
[1766024533335,3.0199,2839.5,2838.7,0.564]
[1766024533538,3.0199,2839.5,2838.6,3.52286338]
[1766024533934,2.2365,2839.4,2838.6,3.52286338]
[1766024534141,3.0199,2839.4,2838.6,3.52286338]
[1766024534950,3.0199,2839.4,2838.5,1.02838023]
[1766024535164,3.0199,2839.4,2838.6,0.4551399]
[1766024535663,3.0209,2839.6,2838.6,0.4551399]
[1766024536501,3.0199,2839.5,2838.5,3.52298218]
[1766024536660,3.0199,2839.5,2838.5,4.08698218]
[1766024536855,2.2365,2839.4,2838.5,4.08698218]
[1766024537051,0.7834,2839.4,2838.0,0.002]
[1766024537251,0.7834,2839.2,2838.1,0.03530325]
[1766024537475,3.0199,2839.1,2838.1,0.564]
[1766024537785,2.2365,2839.0,2838.1,0.564]
[1766024537952,3.0199,2839.0,2838.1,0.564]
[1766024538149,3.0199,2839.0,2838.2,3.52329596]
[1766024538492,0.405504,2839.4,2838.3,3.52323199]
[1766024538782,3.425404,2839.4,2838.5,3.52298237]
[1766024539008,2.2375,2840.8,2839.0,0.405504]
[1766024539287,2.2375,2840.8,2839.1,4.08724296]
[1766024539288,2.70088023,2840.7,2839.1,4.08724296]
[1766024539463,2.2365,2840.6,2839.1,4.08724296]
[1766024539662,2.74029495,2840.6,2839.1,0.46438023]
[1766024539864,2.2365,2840.4,2838.9,0.46438023]
[1766024540080,2.2365,2840.4,2838.9,3.5224833]
[1766024540282,2.70088023,2840.2,2839.0,3.52235705]
[1766024540591,2.2365,2840.2,2839.1,0.6651]
[1766024541090,2.2365,2840.1,2839.1,0.6651]
[1766024541259,2.2365,2840.1,2839.3,0.661]
[1766024541457,2.2365,2840.4,2839.3,0.565]
[1766024541657,0.7834,2840.6,2839.5,0.661]
[1766024541897,1.24778023,2840.6,2839.5,0.661]
[1766024542091,0.46438023,2840.5,2839.5,0.661]
[1766024542457,2.2365,2840.5,2839.5,0.661]
[1766024542795,0.7834,2840.6,2839.4,0.76092378]
[1766024542955,3.0199,2840.4,2839.4,0.76092378]
[1766024543156,2.2365,2840.4,2839.5,0.6529]
[1766024543388,3.0199,2840.3,2839.5,0.19788238]
[1766024543590,2.2365,2840.2,2839.5,0.19788238]
[1766024543985,3.0199,2840.2,2839.2,0.6529]
[1766024544161,2.2365,2839.8,2839.1,4.55157106]
[1766024544357,2.2365,2839.8,2839.1,0.46438023]
[1766024544684,0.7834,2839.6,2838.7,3.52271119]
[1766024544886,2.2365,2839.4,2838.7,0.46438023]
[1766024545101,2.2365,2839.4,2838.8,0.86310116]
[1766024545398,2.2365,2839.4,2838.8,0.39872093]
[1766024545602,2.2365,2839.4,2838.7,0.46438023]
[1766024545817,0.50379495,2840.3,2838.9,0.6412]
[1766024546104,0.50379495,2840.3,2838.9,1.2062]
[1766024546105,0.86988423,2840.3,2838.9,1.2062]
[1766024546275,0.7834,2839.9,2838.9,0.6412]
[1766024546461,2.2365,2839.4,2838.8,0.002]
[1766024546663,2.2365,2840.1,2838.9,0.6374]
[1766024546893,2.2365,2839.7,2838.8,0.76325503]
[1766024547096,2.2365,2839.4,2838.8,4.0895263]
[1766024547312,0.001,2840.5,2838.9,0.6374]
[1766024547501,2.70088023,2840.1,2839.1,0.6374]
[1766024547794,2.70188023,2840.5,2839.3,0.6336]
[1766024548292,0.7834,2840.2,2838.8,0.002]
[1766024548494,0.7834,2839.6,2838.8,0.002]
[1766024548679,2.2365,2839.5,2838.8,0.002]
[1766024548860,3.56863065,2839.5,2838.8,0.002]
[1766024549264,1.33213065,2839.5,2839.0,0.6299]
[1766024549501,2.70088023,2840.0,2839.1,3.43343801]
[1766024549992,2.70088023,2840.0,2839.1,0.41523525]
[1766024550371,2.70088023,2840.0,2839.1,3.937416]
[1766024550599,2.2365,2840.3,2839.2,0.6262]
[1766024550800,2.70088023,2840.3,2839.3,0.6225]
[1766024551117,2.70088023,2840.1,2839.1,4.503416]
[1766024551426,2.2365,2840.0,2839.1,4.503416]
[1766024551614,2.2365,2840.0,2839.1,0.98123525]
[1766024551996,2.2365,2840.0,2839.1,4.5034469]
[1766024553096,2.2365,2840.3,2839.2,0.65060325]
[1766024553288,2.70088023,2840.3,2839.3,0.6153]
[1766024553492,0.406504,2840.5,2839.1,4.08821165]
[1766024553797,2.2365,2840.3,2839.1,4.08821165]
[1766024554020,2.70088023,2840.1,2839.2,4.13390835]
[1766024554218,2.70088023,2840.1,2839.3,0.46999083]
[1766024555331,2.70088023,2840.1,2839.2,1.1768]
[1766024556215,2.2365,2840.1,2839.2,0.6118]
[1766024556415,2.2365,2839.9,2839.2,0.565]
[1766024559153,2.2365,2839.9,2839.2,1.1598]
[1766024559851,2.70088023,2840.3,2839.3,0.5915]
[1766024560020,0.34842802,2840.2,2839.3,0.5915]
[1766024560221,2.2365,2840.1,2839.3,0.5915]
[1766024560420,2.70088023,2840.1,2839.3,1.1565]
[1766024560641,2.70088023,2840.1,2839.4,0.5915]
[1766024560951,2.1055,2840.4,2839.4,0.5915]
[1766024561122,0.28176,2840.3,2839.4,0.5915]
[1766024561322,2.38726,2840.3,2839.4,0.5915]
[1766024561718,0.46438023,2840.2,2839.4,0.5915]
[1766024562552,0.99286,2840.3,2839.4,0.5915]
[1766024562750,2.56988023,2840.2,2839.4,0.5915]
[1766024563925,2.57088023,2840.2,2839.4,0.5915]
[1766024564124,2.1055,2840.0,2839.3,0.566]
[1766024564544,0.001,2840.5,2839.4,0.03530325]
[1766024564748,0.001,2840.5,2839.5,0.03530325]
[1766024564928,0.001,2840.5,2839.5,0.79983255]
[1766024565840,0.001,2840.8,2839.8,0.03530325]
[1766024566154,0.001,2840.8,2839.9,0.565]
[1766024566359,0.7121,2840.8,2839.9,0.565]
[1766024566540,0.46438023,2840.7,2839.9,4.0862451]
[1766024566735,0.46438023,2840.7,2839.9,1.32930317]
[1766024567067,0.46438023,2840.7,2839.9,4.88585512]
[1766024567268,0.46438023,2840.7,2839.9,1.36460642]
[1766024567564,0.46438023,2840.7,2839.9,4.8505526]
[1766024567765,0.001,2840.8,2840.0,0.03530325]
[1766024567966,0.001,2840.8,2840.1,0.48858559]
[1766024568166,2.8176,2841.1,2840.1,0.48858559]
[1766024568469,0.46438023,2841.0,2840.1,4.00952311]
[1766024569752,0.46438023,2841.0,2840.2,0.03530325]
[1766024569963,2.8176,2841.1,2840.3,0.564]
[1766024570159,2.8176,2841.1,2840.3,1.02252401]
[1766024571052,2.8166,2841.0,2840.3,1.02252401]
[1766024571254,2.8166,2841.0,2840.3,4.54327393]
[1766024571449,2.1055,2841.0,2840.3,4.54327393]
[1766024571662,0.001,2841.1,2840.3,8.06402877]
[1766024571974,0.001,2841.1,2840.4,0.8099332]
[1766024572179,0.001,2841.1,2840.3,4.08475419]
[1766024572670,0.001,2841.1,2840.3,0.564]
[1766024572983,2.8176,2841.1,2840.3,0.564]
[1766024573775,2.8176,2841.1,2840.3,4.08474889]
[1766024574844,2.8176,2841.1,2840.3,3.52074889]
[1766024575176,2.8176,2841.1,2840.4,0.39090846]
[1766024575559,0.001,2841.1,2840.4,0.39090846]
[1766024576748,2.8166,2841.0,2840.4,0.35560521]
[1766024577073,0.001,2841.1,2840.4,3.87621333]
[1766024577462,0.001,2841.1,2840.4,0.35560521]
[1766024577779,0.001,2841.1,2840.5,0.44403]
[1766024579978,0.001,2841.1,2840.1,3.52090781]
[1766024579979,0.001,2841.1,2839.8,0.03530325]
[1766024580197,0.50379495,2841.0,2839.3,3.55924243]
[1766024580482,0.7111,2840.1,2839.3,0.565]
[1766024580688,2.8166,2840.0,2839.4,0.40870525]
[1766024581364,0.7111,2840.5,2839.5,3.52174678]
[1766024581693,0.001,2841.1,2840.0,0.03530325]
[1766024581848,0.7111,2841.0,2840.1,0.563]
[1766024583246,2.1055,2840.9,2840.0,0.564]
[1766024583447,2.1055,2841.0,2840.0,4.08508625]
[1766024583679,0.001,2841.1,2840.0,0.564]
[1766024583981,2.1055,2840.8,2840.1,0.41205033]
[1766024584186,0.001,2841.1,2840.1,0.41205033]
[1766024584351,0.7111,2840.9,2839.7,4.54879208]
[1766024584675,0.001,2841.1,2839.8,0.03530325]
[1766024584878,2.1055,2840.8,2839.8,0.03530325]
[1766024585064,0.7111,2840.8,2839.8,0.03530325]
[1766024585295,2.1055,2840.8,2839.9,3.52124607]
[1766024585443,2.8166,2840.7,2840.0,0.35565493]
[1766024588575,0.7111,2840.9,2839.8,0.565]
[1766024588756,2.8166,2840.6,2839.8,0.565]
[1766024588951,0.7111,2840.9,2839.8,0.565]
[1766024589151,2.8166,2840.7,2839.8,4.08636098]
[1766024589350,2.8166,2840.7,2839.9,0.45507412]
[1766024589877,2.8166,2841.0,2839.9,0.45507412]
[1766024590187,2.1055,2840.8,2839.9,0.45507412]
[1766024590353,1.92,2840.6,2839.9,0.45507412]
[1766024590554,0.6581,2840.5,2839.9,0.45507412]
[1766024590856,2.0762,2840.3,2839.8,0.002]
[1766024591065,2.7841,2839.9,2839.3,0.002]
[1766024591385,0.7079,2839.9,2839.3,0.002]
[1766024591548,2.0762,2839.7,2838.8,0.002]
[1766024591748,0.96817518,2840.1,2838.8,0.002]
[1766024591749,0.7079,2839.4,2838.8,0.002]
[1766024591970,0.7079,2839.4,2838.6,0.002]
[1766024591971,2.7841,2839.0,2838.6,0.002]
[1766024592149,2.7841,2839.3,2838.6,0.002]
[1766024592351,2.0762,2839.1,2838.6,0.002]
[1766024592549,0.7079,2839.2,2838.6,0.002]
[1766024592786,0.7079,2839.3,2838.6,0.002]
[1766024592981,2.0762,2838.8,2838.6,0.002]
[1766024593150,0.90929895,2839.4,2838.1,0.002]
[1766024593350,0.7079,2839.0,2838.1,0.002]
[1766024593584,2.0762,2838.7,2838.1,0.35476597]
[1766024593769,2.7841,2838.7,2838.1,0.35476597]
[1766024593957,9.36228572,2839.4,2838.1,0.35476597]
[1766024593958,2.0762,2838.8,2838.1,0.002]
[1766024594157,2.7841,2838.7,2838.1,0.002]
[1766024595461,0.7079,2839.0,2838.5,0.002]
[1766024595680,2.7841,2838.8,2838.5,0.002]
[1766024596723,3.92728459,2839.5,2838.1,0.002]
[1766024596724,2.0762,2839.1,2838.1,0.002]
[1766024598590,2.0762,2839.1,2838.1,3.52548402]
[1766024598793,2.0762,2839.1,2838.1,7.08427129]
[1766024599012,2.0762,2839.1,2838.2,0.03523359]
[1766024599195,2.0762,2839.1,2838.1,7.08427129]
[1766024599398,2.0762,2839.1,2838.2,0.70862713]
[1766024599598,0.7079,2839.3,2838.2,1.27262713]
[1766024599824,4.19362767,2839.6,2838.2,1.27262713]
[1766024599825,2.0762,2839.0,2838.2,1.27262713]
[1766024600034,2.7841,2839.0,2838.2,1.27262713]
[1766024600530,2.7841,2839.0,2838.1,0.002]
[1766024600531,0.405504,2839.5,2838.1,0.002]
[1766024600836,2.0762,2838.5,2838.1,0.002]
[1766024601135,2.7841,2838.4,2838.1,0.002]
[1766024603304,0.7079,2838.4,2837.8,0.002]
[1766024603552,2.0762,2837.9,2837.6,0.002]
[1766024603851,2.0762,2837.9,2837.4,0.002]
[1766024603852,0.7079,2837.9,2837.4,0.002]
[1766024604150,2.7841,2837.7,2837.4,0.002]
[1766024604509,0.86988423,2838.3,2837.4,0.002]
[1766024604841,2.0762,2838.0,2837.0,0.002]
[1766024605137,0.20762,2837.9,2837.0,0.002]
[1766024605336,0.7079,2837.5,2837.0,0.002]
[1766024605542,0.86988423,2837.7,2836.3,0.002]
[1766024605749,2.7841,2837.3,2836.3,0.002]
[1766024605914,2.7841,2837.3,2835.9,0.002]
[1766024605915,2.0762,2836.9,2835.9,0.002]
[1766024606104,0.7079,2836.4,2835.9,0.002]
[1766024606443,2.7841,2836.3,2835.9,0.002]
[1766024606807,0.7079,2836.8,2835.9,0.002]
[1766024607008,2.7841,2836.8,2835.9,0.002]
[1766024607208,2.0762,2837.0,2835.9,0.002]
[1766024607405,2.0762,2836.6,2835.9,0.002]
[1766024607646,2.7841,2836.6,2835.9,0.002]
[1766024608024,2.7841,2836.9,2836.0,0.03530325]
[1766024608223,2.7841,2836.9,2835.9,0.002]
[1766024608224,0.86988423,2837.4,2835.9,0.002]
[1766024608538,0.7079,2837.4,2835.9,0.60126217]
[1766024608851,2.7841,2837.4,2836.0,7.05218616]
[1766024609038,2.7841,2837.4,2836.1,1.61760039]
[1766024609239,2.7841,2837.4,2836.4,0.03530325]
[1766024609526,2.7841,2837.4,2836.2,0.03530325]